fUSD/lending_fUSD_20260518
["ID","MTS","AMOUNT","RATE_DAILY","PERIOD"]
[422540983,1779043839000,-675.60629631,0.00017808,2]
[422540979,1779043839000,-211.76,0.00017136,2]
[422540988,1779043839000,-675.60629631,0.00017808,2]
[422540984,1779043839000,-675.60629631,0.00017808,2]
[422540990,1779043839000,-675.60629631,0.00017808,2]
[422540992,1779043839000,-675.60629631,0.00017808,2]
[422540987,1779043839000,-675.60629631,0.00017808,2]
[422540985,1779043839000,-675.60629631,0.00017808,2]
[422540989,1779043839000,-675.60629631,0.00017808,2]
[422540986,1779043839000,-675.60629631,0.00017808,2]
[422540991,1779043839000,-675.60629631,0.00017808,2]
[422540994,1779043839000,-675.60629631,0.00017808,2]
[422540993,1779043839000,-675.60629631,0.00017808,2]
[422540970,1779043839000,-229.97,0.00016438,2]
[422540995,1779043839000,-675.60629631,0.00017808,2]
[422540978,1779043839000,-4609.0,0.00016981,2]
[422540966,1779043839000,-1373.76050686,0.000163,2]
[422540948,1779043839000,-177.04,0.00015074,2]
[422540971,1779043839000,-1252.0,0.00016494,2]
[422540997,1779043839000,-675.60629631,0.00017808,2]
[422540943,1779043839000,-177.04,0.0001432,2]
[422540944,1779043839000,-166.66,0.00014384,2]
[422540937,1779043839000,-587.0,0.00013988,2]
[422540938,1779043839000,-250.0,0.00014,2]
[422540939,1779043839000,-2351.0,0.00014034,2]
[422540942,1779043839000,-166.66,0.00014247,2]
[422540941,1779043839000,-740.51,0.000142,2]
[422540940,1779043839000,-166.66,0.0001411,2]
[422540945,1779043839000,-216.57,0.00014504,2]
[422540946,1779043839000,-2000.0,0.00014914,2]
[422540951,1779043839000,-736.0,0.00015102,2]
[422540968,1779043839000,-1493.0,0.00016438,2]
[422540955,1779043839000,-177.04,0.00015827,2]
[422540950,1779043839000,-915.95632727,0.00015088,2]
[422540947,1779043839000,-900.0,0.00015068,2]
[422540949,1779043839000,-151.65704353,0.00015079,2]
[422540954,1779043839000,-3292.0,0.00015437,2]
[422540956,1779043839000,-500.0,0.00015935,2]
[422540952,1779043839000,-823.0,0.00015362,2]
[422540953,1779043839000,-211.76,0.00015422,2]
[422540959,1779043839000,-400.90550288,0.00016,2]
[422540961,1779043839000,-400.90550288,0.000161,2]
[422540963,1779043839000,-1575.07,0.00016116,2]
[422540965,1779043839000,-400.90550288,0.000162,2]
[422540972,1779043839000,-408.78,0.000165,7]
[422540958,1779043839000,-300.0,0.00016,2]
[422540998,1779043839000,-675.60629631,0.00017808,2]
[422541030,1779043839000,-675.60629631,0.00017808,2]
[422541002,1779043839000,-675.60629631,0.00017808,2]
[422541032,1779043839000,-675.60629631,0.00017808,2]
[422541023,1779043839000,-675.60629631,0.00017808,2]
[422541051,1779043839000,-2146.65857718,0.00017808,2]
[422541031,1779043839000,-675.60629631,0.00017808,2]
[422541026,1779043839000,-675.60629631,0.00017808,2]
[422541036,1779043839000,-675.60629631,0.00017808,2]
[422541035,1779043839000,-675.60629631,0.00017808,2]
[422541037,1779043839000,-675.60629631,0.00017808,2]
[422541039,1779043839000,-675.60629631,0.00017808,2]
[422541045,1779043839000,-675.60629631,0.00017808,2]
[422541042,1779043839000,-675.60629631,0.00017808,2]
[422541040,1779043839000,-675.60629631,0.00017808,2]
[422541034,1779043839000,-675.60629631,0.00017808,2]
[422541038,1779043839000,-675.60629631,0.00017808,2]
[422541044,1779043839000,-675.60629631,0.00017808,2]
[422541041,1779043839000,-675.60629631,0.00017808,2]
[422541047,1779043839000,-2146.65857718,0.00017808,2]
[422541046,1779043839000,-675.60629631,0.00017808,2]
[422541054,1779043839000,-2146.65857718,0.00017808,2]
[422541050,1779043839000,-2146.65857718,0.00017808,2]
[422541048,1779043839000,-2146.65857718,0.00017808,2]
[422541052,1779043839000,-2146.65857718,0.00017808,2]
[422541053,1779043839000,-2146.65857718,0.00017808,2]
[422541049,1779043839000,-2146.65857718,0.00017808,2]
[422541056,1779043839000,-2146.65857718,0.00017808,2]
[422540996,1779043839000,-675.60629631,0.00017808,2]
[422541043,1779043839000,-675.60629631,0.00017808,2]
[422541025,1779043839000,-675.60629631,0.00017808,2]
[422541055,1779043839000,-2146.65857718,0.00017808,2]
[422541029,1779043839000,-675.60629631,0.00017808,2]
[422541028,1779043839000,-675.60629631,0.00017808,2]
[422541000,1779043839000,-675.60629631,0.00017808,2]
[422541004,1779043839000,-675.60629631,0.00017808,2]
[422541003,1779043839000,-675.60629631,0.00017808,2]
[422541007,1779043839000,-675.60629631,0.00017808,2]
[422541005,1779043839000,-675.60629631,0.00017808,2]
[422541001,1779043839000,-675.60629631,0.00017808,2]
[422540999,1779043839000,-675.60629631,0.00017808,2]
[422541006,1779043839000,-675.60629631,0.00017808,2]
[422541010,1779043839000,-675.60629631,0.00017808,2]
[422541009,1779043839000,-675.60629631,0.00017808,2]
[422541011,1779043839000,-675.60629631,0.00017808,2]
[422541020,1779043839000,-675.60629631,0.00017808,2]
[422541008,1779043839000,-675.60629631,0.00017808,2]
[422541022,1779043839000,-675.60629631,0.00017808,2]
[422541021,1779043839000,-675.60629631,0.00017808,2]
[422541024,1779043839000,-675.60629631,0.00017808,2]
[422541017,1779043839000,-675.60629631,0.00017808,2]
[422541015,1779043839000,-675.60629631,0.00017808,2]
[422541019,1779043839000,-675.60629631,0.00017808,2]
[422541033,1779043839000,-675.60629631,0.00017808,2]
[422541014,1779043839000,-675.60629631,0.00017808,2]
[422541016,1779043839000,-675.60629631,0.00017808,2]
[422541018,1779043839000,-675.60629631,0.00017808,2]
[422541012,1779043839000,-675.60629631,0.00017808,2]
[422541013,1779043839000,-675.60629631,0.00017808,2]
[422541027,1779043839000,-675.60629631,0.00017808,2]
[422541085,1779043840000,-151.0,0.00017965,2]
[422541091,1779043840000,-151.0,0.00017965,2]
[422541082,1779043840000,-151.0,0.00017965,2]
[422541083,1779043840000,-151.0,0.00017965,2]
[422541081,1779043840000,-151.0,0.00017965,2]
[422541086,1779043840000,-151.0,0.00017965,2]
[422541087,1779043840000,-151.0,0.00017965,2]
[422541088,1779043840000,-151.0,0.00017965,2]
[422541092,1779043840000,-151.0,0.00017965,2]
[422541097,1779043840000,-213.93907454,0.00018,2]
[422541094,1779043840000,-151.0,0.00017965,2]
[422541093,1779043840000,-151.0,0.00017965,2]
[422541095,1779043840000,-151.0,0.00017965,2]
[422541096,1779043840000,-408.91666537,0.00018,2]
[422541099,1779043840000,-2129.0,0.00018013,2]
[422541098,1779043840000,-350.0,0.00018,2]
[422541110,1779043840000,-408.91666537,0.000184,2]
[422541112,1779043840000,-213.93907454,0.000184,2]
[422541079,1779043840000,-151.0,0.00017965,2]
[422541089,1779043840000,-151.0,0.00017965,2]
[422541077,1779043840000,-151.0,0.00017965,2]
[422541066,1779043840000,-2146.65857718,0.00017808,2]
[422541078,1779043840000,-151.0,0.00017965,2]
[422541102,1779043840000,-408.91666537,0.000182,2]
[422541058,1779043840000,-2146.65857718,0.00017808,2]
[422541057,1779043840000,-2146.65857718,0.00017808,2]
[422541059,1779043840000,-2146.65857718,0.00017808,2]
[422541060,1779043840000,-2146.65857718,0.00017808,2]
[422541061,1779043840000,-2146.65857718,0.00017808,2]
[422541062,1779043840000,-2146.65857718,0.00017808,2]
[422541064,1779043840000,-2146.65857718,0.00017808,2]
[422541063,1779043840000,-2146.65857718,0.00017808,2]
[422541080,1779043840000,-151.0,0.00017965,2]
[422541065,1779043840000,-2146.65857718,0.00017808,2]
[422541068,1779043840000,-2146.65857718,0.00017808,2]
[422541070,1779043840000,-2146.65857718,0.00017808,2]
[422541071,1779043840000,-168.21,0.00017877,2]
[422541069,1779043840000,-2146.65857718,0.00017808,2]
[422541074,1779043840000,-151.0,0.00017965,2]
[422541072,1779043840000,-2000.0,0.00017897,2]
[422541076,1779043840000,-151.0,0.00017965,2]
[422541073,1779043840000,-84609.7037679,0.000179,2]
[422541075,1779043840000,-151.0,0.00017965,2]
[422541067,1779043840000,-2146.65857718,0.00017808,2]
[422541105,1779043840000,-213.93907454,0.000182,2]
[422541100,1779043840000,-177.04,0.00018088,2]
[422541115,1779043840000,-1493.0,0.0001841,2]
[422541141,1779043840000,-400.0,0.0002,2]
[422541140,1779043840000,-200000.0,0.0002,2]
[422541142,1779043840000,-214.0,0.0002,2]
[422541145,1779043840000,-26034.0,0.0002,2]
[422541144,1779043840000,-460.0,0.0002,2]
[422541146,1779043840000,-613.0,0.0002,2]
[422541147,1779043840000,-154.0,0.0002,2]
[422541150,1779043840000,-158.0,0.0002,2]
[422541156,1779043840000,-175.87182682,0.0002,2]
[422541137,1779043840000,-280.286757,0.000196,2]
[422541148,1779043840000,-174.0,0.0002,2]
[422541158,1779043840000,-16794.51,0.0002,2]
[422541154,1779043840000,-175.87182682,0.0002,2]
[422541152,1779043840000,-1915.0,0.0002,2]
[422541149,1779043840000,-429.0,0.0002,2]
[422541153,1779043840000,-175.87182682,0.0002,2]
[422541155,1779043840000,-175.87182682,0.0002,2]
[422541159,1779043840000,-200.0,0.0002,10]
[422541160,1779043840000,-154.04735663,0.0002,20]
[422541107,1779043840000,-54636.46,0.00018356,2]
[422541151,1779043840000,-158.0,0.0002,2]
[422541143,1779043840000,-160.0,0.0002,2]
[422541157,1779043840000,-175.87182683,0.0002,2]
[422541138,1779043840000,-3620.0,0.00019672,2]
[422541118,1779043840000,-213.93907454,0.000185,2]
[422541139,1779043840000,-491.22905312,0.00019731,2]
[422541117,1779043840000,-408.91666537,0.000185,2]
[422541119,1779043840000,-175.0,0.00018528,2]
[422541120,1779043840000,-915.95632727,0.00018576,2]
[422541123,1779043840000,-408.91666537,0.000187,2]
[422541124,1779043840000,-213.93907454,0.000187,2]
[422541122,1779043840000,-6453.0,0.00018679,2]
[422541125,1779043840000,-491.22,0.00018791,2]
[422541129,1779043840000,-46635.47643119,0.00019,2]
[422541121,1779043840000,-151.65704353,0.00018608,2]
[422541128,1779043840000,-1134.95,0.00018991,2]
[422541135,1779043840000,-177.04,0.00019596,2]
[422541126,1779043840000,-177.04,0.00018842,2]
[422541134,1779043840000,-500.0,0.00019571,2]
[422541130,1779043840000,-3000.0,0.00019178,2]
[422541133,1779043840000,-839.06718577,0.00019178,17]
[422541132,1779043840000,-3000.0,0.00019178,12]
[422541136,1779043840000,-226.647048,0.000196,2]
[422541127,1779043840000,-211.76,0.00018849,2]
[422541131,1779043840000,-3000.0,0.00019178,7]
[422541208,1779043841000,-154.0,0.00022,2]
[422541201,1779043841000,-3075.54,0.00021918,2]
[422541200,1779043841000,-1226.36,0.000219,7]
[422541199,1779043841000,-740.51,0.000219,2]
[422541207,1779043841000,-613.0,0.00022,2]
[422541197,1779043841000,-9999.99,0.00021757,2]
[422541196,1779043841000,-11327.49,0.00021757,2]
[422541191,1779043841000,-1955.04,0.00021273,2]
[422541190,1779043841000,-1915.0,0.00021,2]
[422541206,1779043841000,-460.0,0.00022,2]
[422541189,1779043841000,-158.0,0.00021,2]
[422541198,1779043841000,-506.08708712,0.0002186,7]
[422541203,1779043841000,-450.0,0.00022,2]
[422541216,1779043841000,-1493.0,0.00022353,2]
[422541204,1779043841000,-214.0,0.00022,2]
[422541205,1779043841000,-160.0,0.00022,2]
[422541209,1779043841000,-174.0,0.00022,2]
[422541211,1779043841000,-158.0,0.00022,2]
[422541213,1779043841000,-1915.0,0.00022,2]
[422541212,1779043841000,-158.0,0.00022,2]
[422541215,1779043841000,-151.65704353,0.00022136,2]
[422541214,1779043841000,-915.95632727,0.00022065,2]
[422541210,1779043841000,-429.0,0.00022,2]
[422541217,1779043841000,-1756.73,0.00022466,2]
[422541220,1779043841000,-4981.84867545,0.00022669,21]
[422541221,1779043841000,-214.0,0.00023,2]
[422541188,1779043841000,-158.0,0.00021,2]
[422541202,1779043841000,-1004.62,0.00021918,2]
[422541185,1779043841000,-154.0,0.00021,2]
[422541163,1779043841000,-177.04,0.00020349,2]
[422541186,1779043841000,-174.0,0.00021,2]
[422541218,1779043841000,-1745.75,0.00022466,2]
[422541169,1779043841000,-3980.73,0.00020548,2]
[422541170,1779043841000,-3980.72,0.00020548,2]
[422541161,1779043841000,-300.0,0.000201,10]
[422541162,1779043841000,-915.95632727,0.00020321,2]
[422541167,1779043841000,-3980.73,0.00020548,2]
[422541168,1779043841000,-3980.73,0.00020548,2]
[422541166,1779043841000,-9035.0,0.00020547,2]
[422541165,1779043841000,-1493.0,0.00020381,2]
[422541164,1779043841000,-151.65704353,0.00020372,2]
[422541171,1779043841000,-2771.76,0.00020548,2]
[422541173,1779043841000,-150.0,0.0002058,2]
[422541176,1779043841000,-150.0,0.0002058,2]
[422541187,1779043841000,-429.0,0.00021,2]
[422541174,1779043841000,-150.0,0.0002058,2]
[422541182,1779043841000,-160.0,0.00021,2]
[422541177,1779043841000,-150.0,0.0002058,2]
[422541178,1779043841000,-150.0,0.0002058,2]
[422541172,1779043841000,-211.76,0.00020563,2]
[422541179,1779043841000,-169.84,0.00020639,2]
[422541175,1779043841000,-150.0,0.0002058,2]
[422541180,1779043841000,-1373.76050686,0.00021,2]
[422541184,1779043841000,-613.0,0.00021,2]
[422541194,1779043841000,-2189.28,0.00021273,2]
[422541195,1779043841000,-5442.0,0.00021481,2]
[422541193,1779043841000,-473.97,0.00021273,2]
[422541192,1779043841000,-250.92,0.00021273,2]
[422541183,1779043841000,-460.0,0.00021,2]
[422541181,1779043841000,-214.0,0.00021,2]
[422541219,1779043841000,-1783.0,0.00022601,2]
[422541231,1779043841000,-6321.74,0.00023,30]
[422541224,1779043841000,-460.0,0.00023,2]
[422541251,1779043841000,-500.0,0.00024,2]
[422541249,1779043841000,-915.95632727,0.00023809,2]
[422541254,1779043841000,-460.0,0.00024,2]
[422541253,1779043841000,-160.0,0.00024,2]
[422541260,1779043841000,-169.0,0.00024,2]
[422541262,1779043841000,-405.21743491,0.00024287,2]
[422541261,1779043841000,-1915.0,0.00024,2]
[422541268,1779043841000,-192.14,0.00024658,2]
[422541264,1779043841000,-1493.0,0.00024324,2]
[422541265,1779043841000,-525.27670665,0.0002439,2]
[422541266,1779043841000,-742.1877375,0.00024397,2]
[422541267,1779043841000,-169.84,0.00024566,2]
[422541263,1779043841000,-1000.0,0.00024307,7]
[422541269,1779043841000,-1000.0,0.00024658,2]
[422541270,1779043841000,-183.71,0.00024658,2]
[422541275,1779043841000,-183.71,0.00024946,7]
[422541273,1779043841000,-175.01,0.00024658,2]
[422541272,1779043841000,-183.79,0.00024658,2]
[422541274,1779043841000,-626.58081187,0.0002473,2]
[422541277,1779043841000,-183.79,0.00024946,7]
[422541282,1779043841000,-614.05895688,0.00025,2]
[422541276,1779043841000,-174.63,0.00024946,7]
[422541271,1779043841000,-174.63,0.00024658,2]
[422541281,1779043841000,-472.70135963,0.00025,2]
[422541278,1779043841000,-175.01,0.00024946,7]
[422541279,1779043841000,-231.45405378,0.00025,2]
[422541280,1779043841000,-179.47870466,0.00025,2]
[422541256,1779043841000,-154.0,0.00024,2]
[422541257,1779043841000,-174.0,0.00024,2]
[422541223,1779043841000,-160.0,0.00023,2]
[422541252,1779043841000,-214.0,0.00024,2]
[422541233,1779043841000,-500.0,0.00023206,2]
[422541222,1779043841000,-1927.0,0.00023,2]
[422541225,1779043841000,-613.0,0.00023,2]
[422541228,1779043841000,-429.0,0.00023,2]
[422541227,1779043841000,-174.0,0.00023,2]
[422541226,1779043841000,-154.0,0.00023,2]
[422541229,1779043841000,-158.0,0.00023,2]
[422541255,1779043841000,-613.0,0.00024,2]
[422541232,1779043841000,-1915.0,0.00023,2]
[422541230,1779043841000,-158.0,0.00023,2]
[422541235,1779043841000,-164.82,0.0002349,2]
[422541244,1779043841000,-417.0,0.0002349,2]
[422541234,1779043841000,-168.21,0.00023425,2]
[422541245,1779043841000,-161.862,0.0002349,2]
[422541283,1779043841000,-169.0,0.00025,2]
[422541242,1779043841000,-200.0,0.0002349,2]
[422541237,1779043841000,-3543.0,0.0002349,2]
[422541250,1779043841000,-151.65704353,0.000239,2]
[422541247,1779043841000,-150.0,0.0002349,2]
[422541259,1779043841000,-158.0,0.00024,2]
[422541248,1779043841000,-3632.0,0.0002349,2]
[422541240,1779043841000,-150.0,0.0002349,2]
[422541258,1779043841000,-429.0,0.00024,2]
[422541243,1779043841000,-275.0,0.0002349,2]
[422541239,1779043841000,-1270.0,0.0002349,2]
[422541236,1779043841000,-927.0,0.0002349,2]
[422541241,1779043841000,-219.0,0.0002349,2]
[422541246,1779043841000,-150.0,0.0002349,2]
[422541238,1779043841000,-1354.0,0.0002349,2]
[422541324,1779043842000,-500.0,0.00027123,2]
[422541323,1779043842000,-500.0,0.00027123,2]
[422541326,1779043842000,-500.0,0.00027123,2]
[422541325,1779043842000,-500.0,0.00027123,2]
[422541322,1779043842000,-150.0,0.00027123,20]
[422541309,1779043842000,-3543.0,0.0002649,2]
[422541317,1779043842000,-150.0,0.0002649,2]
[422541316,1779043842000,-150.0,0.0002649,2]
[422541319,1779043842000,-500.0,0.00026842,2]
[422541315,1779043842000,-150.0,0.0002649,2]
[422541312,1779043842000,-150.0,0.0002649,2]
[422541318,1779043842000,-3632.0,0.0002649,2]
[422541333,1779043842000,-380.0,0.00027123,2]
[422541345,1779043842000,-500.0,0.00027397,2]
[422541328,1779043842000,-500.0,0.00027123,2]
[422541330,1779043842000,-500.0,0.00027123,2]
[422541331,1779043842000,-500.0,0.00027123,2]
[422541329,1779043842000,-392.65031015,0.00027123,2]
[422541332,1779043842000,-500.0,0.00027123,2]
[422541335,1779043842000,-500.0,0.00027123,2]
[422541346,1779043842000,-500.0,0.00027397,2]
[422541338,1779043842000,-500.0,0.00027123,2]
[422541348,1779043842000,-526.72,0.00027397,2]
[422541347,1779043842000,-1500.0,0.00027397,2]
[422541337,1779043842000,-500.0,0.00027123,2]
[422541339,1779043842000,-165.34049564,0.00027123,2]
[422541314,1779043842000,-417.0,0.0002649,2]
[422541327,1779043842000,-500.0,0.00027123,2]
[422541313,1779043842000,-150.0,0.0002649,2]
[422541297,1779043842000,-910.19279999,0.00025708,2]
[422541311,1779043842000,-1270.0,0.0002649,2]
[422541343,1779043842000,-500.0,0.00027397,2]
[422541284,1779043842000,-185.0,0.00025,2]
[422541289,1779043842000,-183.71,0.00025234,2]
[422541290,1779043842000,-174.63,0.00025234,30]
[422541294,1779043842000,-183.79,0.00025523,2]
[422541288,1779043842000,-5000.0,0.00025118,2]
[422541296,1779043842000,-1373.76050686,0.000257,2]
[422541293,1779043842000,-174.63,0.00025523,2]
[422541285,1779043842000,-442.0,0.00025,2]
[422541287,1779043842000,-1926.4902159,0.00025,2]
[422541286,1779043842000,-173.0,0.00025,2]
[422541292,1779043842000,-183.71,0.00025523,2]
[422541291,1779043842000,-183.79,0.00025234,2]
[422541295,1779043842000,-915.95632727,0.00025553,2]
[422541299,1779043842000,-482.15270711,0.00025717,2]
[422541308,1779043842000,-927.0,0.0002649,2]
[422541301,1779043842000,-250.92,0.00025786,2]
[422541306,1779043842000,-1493.0,0.00026296,2]
[422541300,1779043842000,-1955.04,0.00025786,2]
[422541304,1779043842000,-174.63,0.00025811,7]
[422541303,1779043842000,-2189.28,0.00025786,2]
[422541302,1779043842000,-473.97,0.00025786,2]
[422541298,1779043842000,-9304.10370183,0.00025709,2]
[422541305,1779043842000,-550.0,0.00026,2]
[422541307,1779043842000,-740.51,0.000264,7]
[422541310,1779043842000,-1354.0,0.0002649,2]
[422541320,1779043842000,-215.0785988,0.00027,3]
[422541321,1779043842000,-1927.0,0.000271,7]
[422541340,1779043842000,-150.0,0.00027123,2]
[422541342,1779043842000,-500.0,0.00027397,2]
[422541394,1779043842000,-422.06,0.00028756,7]
[422541382,1779043842000,-420.91,0.00028693,30]
[422541381,1779043842000,-306.67,0.00028693,30]
[422541378,1779043842000,-155.57,0.00028673,7]
[422541380,1779043842000,-422.06,0.00028693,30]
[422541387,1779043842000,-306.08,0.00028725,2]
[422541397,1779043842000,-155.23,0.00028759,2]
[422541390,1779043842000,-420.91,0.00028725,2]
[422541388,1779043842000,-422.06,0.00028725,2]
[422541386,1779043842000,-155.57,0.00028716,30]
[422541389,1779043842000,-306.67,0.00028725,2]
[422541393,1779043842000,-306.08,0.00028756,7]
[422541395,1779043842000,-306.67,0.00028756,7]
[422541396,1779043842000,-420.91,0.00028756,7]
[422541377,1779043842000,-155.23,0.00028673,7]
[422541391,1779043842000,-153.09,0.0002875,2]
[422541399,1779043842000,-306.08,0.00028788,30]
[422541407,1779043842000,-306.08,0.0002882,2]
[422541400,1779043842000,-422.06,0.00028788,30]
[422541398,1779043842000,-155.57,0.00028759,2]
[422541402,1779043842000,-420.91,0.00028788,30]
[422541401,1779043842000,-306.67,0.00028788,30]
[422541403,1779043842000,-153.09,0.0002879,7]
[422541406,1779043842000,-155.57,0.00028802,7]
[422541408,1779043842000,-422.06,0.0002882,2]
[422541405,1779043842000,-155.23,0.00028802,7]
[422541409,1779043842000,-306.67,0.0002882,2]
[422541344,1779043842000,-500.0,0.00027397,2]
[422541404,1779043842000,-153.15,0.0002879,7]
[422541392,1779043842000,-153.15,0.0002875,2]
[422541384,1779043842000,-153.15,0.0002871,30]
[422541383,1779043842000,-153.09,0.0002871,30]
[422541373,1779043842000,-306.67,0.00028661,7]
[422541341,1779043842000,-915.95632727,0.00027297,2]
[422541350,1779043842000,-300.0,0.00027397,2]
[422541351,1779043842000,-19746.54,0.00027397,10]
[422541355,1779043842000,-5629.37,0.000274,14]
[422541361,1779043842000,-1493.0,0.00028267,2]
[422541354,1779043842000,-158.85,0.000274,7]
[422541352,1779043842000,-16455.45,0.00027397,10]
[422541356,1779043842000,-215.0785988,0.000274,10]
[422541359,1779043842000,-600.0,0.00028,2]
[422541379,1779043842000,-306.08,0.00028693,30]
[422541358,1779043842000,-500.0,0.000278,7]
[422541360,1779043842000,-215.0785988,0.000282,10]
[422541357,1779043842000,-1021.96,0.000277,14]
[422541365,1779043842000,-153.09,0.0002863,2]
[422541369,1779043842000,-153.15,0.0002863,2]
[422541353,1779043842000,-324.88,0.000274,7]
[422541370,1779043842000,-155.57,0.0002863,2]
[422541376,1779043842000,-153.15,0.0002867,7]
[422541367,1779043842000,-306.67,0.0002863,2]
[422541385,1779043842000,-155.23,0.00028716,30]
[422541374,1779043842000,-420.91,0.00028661,7]
[422541368,1779043842000,-420.91,0.0002863,2]
[422541362,1779043842000,-169.84,0.00028493,2]
[422541375,1779043842000,-153.09,0.0002867,7]
[422541371,1779043842000,-306.08,0.00028661,7]
[422541366,1779043842000,-155.23,0.0002863,2]
[422541364,1779043842000,-422.06,0.0002863,2]
[422541363,1779043842000,-306.08,0.0002863,2]
[422541372,1779043842000,-422.06,0.00028661,7]
[422541456,1779043843000,-306.08,0.0002901,2]
[422541452,1779043843000,-153.09,0.00028991,2]
[422541450,1779043843000,-306.67,0.00028979,30]
[422541444,1779043843000,-762.0,0.00028974,10]
[422541451,1779043843000,-420.91,0.00028979,30]
[422541449,1779043843000,-422.06,0.00028979,30]
[422541446,1779043843000,-155.23,0.00028974,30]
[422541447,1779043843000,-155.57,0.00028974,30]
[422541454,1779043843000,-740.51,0.00029,7]
[422541448,1779043843000,-306.08,0.00028979,30]
[422541457,1779043843000,-422.06,0.0002901,2]
[422541445,1779043843000,-387.0,0.00028974,10]
[422541458,1779043843000,-306.67,0.0002901,2]
[422541479,1779043843000,-422.06,0.00029105,2]
[422541467,1779043843000,-420.91,0.00029042,7]
[422541460,1779043843000,-155.23,0.00029017,2]
[422541464,1779043843000,-306.08,0.00029042,7]
[422541466,1779043843000,-306.67,0.00029042,7]
[422541463,1779043843000,-153.15,0.00029031,7]
[422541462,1779043843000,-153.09,0.00029031,7]
[422541461,1779043843000,-155.57,0.00029017,2]
[422541465,1779043843000,-422.06,0.00029042,7]
[422541469,1779043843000,-155.57,0.0002906,7]
[422541468,1779043843000,-155.23,0.0002906,7]
[422541480,1779043843000,-306.67,0.00029105,2]
[422541470,1779043843000,-153.09,0.00029072,30]
[422541442,1779043843000,-153.09,0.00028951,30]
[422541459,1779043843000,-420.91,0.0002901,2]
[422541455,1779043843000,-215.0785988,0.00029,7]
[422541410,1779043843000,-420.91,0.0002882,2]
[422541443,1779043843000,-153.15,0.00028951,30]
[422541412,1779043843000,-153.15,0.0002883,30]
[422541411,1779043843000,-153.09,0.0002883,30]
[422541422,1779043843000,-422.06,0.00028883,30]
[422541415,1779043843000,-306.08,0.00028852,7]
[422541413,1779043843000,-155.23,0.00028845,30]
[422541414,1779043843000,-155.57,0.00028845,30]
[422541424,1779043843000,-306.67,0.00028883,30]
[422541425,1779043843000,-420.91,0.00028883,30]
[422541418,1779043843000,-420.91,0.00028852,7]
[422541420,1779043843000,-153.15,0.00028871,2]
[422541417,1779043843000,-306.67,0.00028852,7]
[422541419,1779043843000,-153.09,0.00028871,2]
[422541416,1779043843000,-422.06,0.00028852,7]
[422541453,1779043843000,-153.15,0.00028991,2]
[422541421,1779043843000,-306.08,0.00028883,30]
[422541438,1779043843000,-306.08,0.00028947,7]
[422541440,1779043843000,-306.67,0.00028947,7]
[422541441,1779043843000,-420.91,0.00028947,7]
[422541429,1779043843000,-155.57,0.00028888,2]
[422541439,1779043843000,-422.06,0.00028947,7]
[422541430,1779043843000,-153.09,0.00028911,7]
[422541431,1779043843000,-153.15,0.00028911,7]
[422541434,1779043843000,-306.67,0.00028915,2]
[422541436,1779043843000,-155.23,0.00028931,7]
[422541433,1779043843000,-422.06,0.00028915,2]